Cogmind - Beta 12 @@@ ROGUE MODE // 2023.06.17 @ 14:51:48 Player: defnotatroll Result: Destroyed by S-10 Pest with Light Assault Rifle Performance ------------- Evolutions (1) 500 Regions Visited (3) 600 Robots Destroyed (14) 70 Value Destroyed (392) 392 Prototype IDs (3) 60 Alien Tech Used (0) 0 Bonus (200) 200 TOTAL SCORE: 1822 Bonus ------- Pacifist 200 Cogmind --------- Core Integrity 0/400 Matter 275/300 Energy 53/100 System Corruption 0% Temperature Cool (0) Movement Core (200) Ox3 Location -9/Materials Parts ------- > --- POWER (1) -------- (None) > --- PROPULSION (2) --- (None) > --- UTILITY (4) ------ Heat Sink Medium Storage Unit > --- WEAPON (2) ------- Light Assault Rifle > --- INVENTORY (10) --- Flight Unit Flight Unit Small Storage Unit Small Laser Datajack Peak State ------------ > --- POWER ------------ Ion Engine > --- PROPULSION ------- Light Treads Improved Flight Unit > --- UTILITY ---------- Medium Storage Unit Large Matter Pod Targeting Computer Medium Armor Plating > --- WEAPON ----------- EM Pulse Gun Assault Rifle > --- INVENTORY -------- Light Ion Engine Aluminum Leg Heat Sink Small Storage Unit Light Armor Plating Light Armor Plating Assault Rifle Heavy Assault Rifle Datajack [Rating: 13] Favorites ----------- Power Ion Engine Engine Ion Engine Propulsion Aluminum Leg Treads Light Treads Leg Aluminum Leg Hover Unit Hover Unit Flight Unit Flight Unit Utility Medium Storage Unit Device Heat Sink Storage Medium Storage Unit Processor Targeting Computer Protection Light Armor Plating Weapon Assault Rifle Energy Gun EM Pulse Gun Ballistic Gun Assault Rifle Build | -11 -10 -10 -9 ------- Run | Jun Mat Min Mat Slots Evolved 2 | . . . 2 Power . | . . . . Propulsion . | . . . . Utility 2 | . . . 2 Weapon . | . . . . Parts Attached 31 | 5 2 3 21 Power 2 | 1 . . 1 Engine 2 | 1 . . 1 Core . | . . . . Reactor . | . . . . Propulsion 11 | 3 . . 8 Treads 4 | 1 . . 3 Leg 2 | 2 . . . Wheel . | . . . . Hover 1 | . . . 1 Flight 4 | . . . 4 Utility 11 | . 1 2 8 Device 2 | . . . 2 Storage 3 | . 1 2 . Processor 1 | . . . 1 Hackware . | . . . . Protection 5 | . . . 5 Artifact . | . . . . Weapon 7 | 1 1 1 4 Energy Gun 1 | . . 1 . Energy Cannon . | . . . . Ballistic Gun 6 | 1 1 . 4 Ballistic Cannon . | . . . . Launcher . | . . . . Special Weapon . | . . . . Impact Weapon . | . . . . Slashing Weapon . | . . . . Piercing Weapon . | . . . . Special Melee Weapon . | . . . . Unidentified Prototypes 1 | . . . 1 Parts Lost 17 | . . . 17 Power 2 | . . . 2 Propulsion 4 | . . . 4 Utility 6 | . . . 6 Weapon 5 | . . . 5 Highest Loss Streak 6 | . . . 6 To Critical Strikes 3 | . . . 3 Average Slot Usage (%) 89 | . 75 86 90 Engine 11 | . 14 14 10 Leg 12 | . 28 28 8 Hover 2 | . . . 3 Flight 3 | . . . 4 Storage 19 | . 9 15 21 Processor 8 | . . . 10 Protection 6 | . . . 8 Energy Gun 6 | . . . 8 Ballistic Gun 15 | . 23 27 12 Naked Turns . | . . . . Heaviest Build 29 | 7 14 22 29 Greatest Support 20 | 20 20 20 20 Greatest Overweight (x) 7 | . . 1 7 Average Overweight (x) 1 | . . . 2 Largest Inventory Capacity 10 | 5 8 10 10 Average Capacity 9 | 5 6 8 10 Most Carried 10 | 5 5 8 10 Average Carried 6 | 3 4 5 7 Final Capacity 10 | 5 8 10 10 Final Carried 7 | 5 5 7 5 Class Distribution -------------------- 90% | Mutant 9% | Scavenger-Mutant Dominant Class ---------------- Mutant | -10/Materials Mutant | -10/Mines Mutant | -9/Materials Resources | -11 -10 -10 -9 ----------- Run | Jun Mat Min Mat Matter Collected 738 | 250 . 206 282 Remotely . | . . . . Salvage Created 464 | . . . 464 Parts 32 | . . . 32 Haulers Intercepted . | . . . . Recyclers Shooed . | . . . . Parts Field Recycled . | . . . . Retrieved Matter . | . . . . Parts Self-Destructed . | . . . . Prevented . | . . . . Kills | -11 -10 -10 -9 ------- Run | Jun Mat Min Mat Combat Hostiles Destroyed 14 | . . . 14 Guns 12 | . . . 12 AOE 2 | . . . 2 Classes Destroyed 3 | . . . 3 Swarmer 7 | . . . 7 Grunt 3 | . . . 3 Sentry 4 | . . . 4 Best Kill Streak 4 | . . . 4 Combat Bots Only 4 | . . . 4 Max Kills in Single Turn 1 | . . . 1 Gunslinging . | . . . . Exploded 1 | . . . 1 Melee . | . . . . Uniques/NPCs Destroyed . | . . . . Combat | -11 -10 -10 -9 -------- Run | Jun Mat Min Mat Damage Taken 1580 | . . . 1580 Core 404 | . . . 404 Absorbed by Shields . | . . . . Core Remaining (%) 100 | 100 . 100 . Volleys Fired 54 | . 1 . 53 Largest 2 | . 2 . 2 Hottest 60 | . 40 . 60 Shots Fired 90 | . 2 . 88 Gun 90 | . 2 . 88 Cannon . | . . . . Launcher . | . . . . Special . | . . . . Kinetic 63 | . 2 . 61 Thermal . | . . . . Explosive . | . . . . Electromagnetic 27 | . . . 27 Robot Hit Streak 17 | . 1 . 17 Robot Miss Streak 5 | . 1 . 5 Penetration Max . | . . . . Secondary Targets 1 | . . . 1 Max Gunslinging Chain 1 | . . . 1 Shots Hit Robots 54 | . 1 . 53 Core Hits 21 | . 1 . 20 Critical Kills . | . . . . Critical Parts Destroyed . | . . . . Critical Strikes 1 | . . . 1 Corrupt 1 | . . . 1 Melee Attacks . | . . . . Impact . | . . . . Slashing . | . . . . Piercing . | . . . . Sneak Attacks . | . . . . Combat Hostiles . | . . . . Follow-up Attacks . | . . . . Damage Inflicted 779 | . 10 . 769 Guns 683 | . 10 . 673 Cannons . | . . . . Explosions 96 | . . . 96 Melee . | . . . . Ramming . | . . . . Kinetic 505 | . 10 . 495 Thermal 96 | . . . 96 Explosive . | . . . . Electromagnetic 178 | . . . 178 Impact . | . . . . Slashing . | . . . . Piercing . | . . . . Highest Corruption 1 | . 1 1 . Average Corruption 1 | . 1 1 . Corruption Purged . | . . . . Corruption Blocked . | . . . . Effects 2 | . . 2 . Heat Flow Errors 1 | . . 1 . Data Loss (minor) 1 | . . 1 . Overload Shots . | . . . . Overflow Damage 64 | . . . 64 Projectiles . | . . . . Explosions 64 | . . . 64 Melee . | . . . . Knockbacks . | . . . . Impact . | . . . . Kinetic . | . . . . Secondary . | . . . . Self-Inflicted Damage 228 | . . . 228 Shots 4 | . . . 4 Rammed . | . . . . Targets Rammed . | . . . . Kicked . | . . . . Crushed . | . . . . Highest Temperature 81 | . . 81 46 Average Temperature 18 | . . 45 16 Received Heat Transfer 384 | . . . 384 Siege Activations . | . . . . Robots Corrupted . | . . . . Combat Hostiles . | . . . . Parts Fried . | . . . . Impact Corruptions . | . . . . Robots Melted . | . . . . Combat Hostiles . | . . . . Parts Melted . | . . . . Heat Transferred 50 | . . . 50 Parts Sabotaged . | . . . . Parts Stolen . | . . . . Parts Stripped . | . . . . Power Chain Reactions 2 | . . . 2 Missiles Intercepted . | . . . . Alert | -11 -10 -10 -9 ------- Run | Jun Mat Min Mat Peak Influence 167 | . 20 7 167 Initial 7 | . . 7 2 Average 57 | . 13 7 76 Maximum Alert Level . | . . . . Low Security (%) 100 | 100 100 100 100 Level 1 . | . . . . Level 2 . | . . . . Level 3 . | . . . . Level 4 . | . . . . Level 5 . | . . . . High Security . | . . . . Max Security . | . . . . Squads Dispatched 1 | . . . 1 Investigation . | . . . . Extermination . | . . . . Reinforcement 1 | . . . 1 Assault . | . . . . Garrison . | . . . . Intercept . | . . . . Searches Triggered . | . . . . Construction Impeded . | . . . . Haulers Reinforced . | . . . . Active Scanning Responses . | . . . . Cargo Convoy Interrupts . | . . . . Stealth | -11 -10 -10 -9 --------- Run | Jun Mat Min Mat Distress Signals . | . . . . Communications Jammed . | . . . . Distress Signals . | . . . . Times Spotted 34 | . 1 5 28 Peak Tracking Total 8 | . 1 8 5 Tactical Retreats . | . . . . Traps | -11 -10 -10 -9 ------- Run | Jun Mat Min Mat Traps Triggered 1 | . 1 . . Indirectly . | . . . . Trap Hack Attempts . | . . . . Triggered . | . . . . Disarmed . | . . . . Reprogrammed . | . . . . Reused . | . . . . Traps Extracted . | . . . . Installed . | . . . . Triggered . | . . . . Machines | -11 -10 -10 -9 ---------- Run | Jun Mat Min Mat Machines Disabled 4 | . . . 4 Max in Single Turn 3 | . . . 3 Machines Repaired . | . . . . Machines Sabotaged . | . . . . Overloaded Fab Kills . | . . . . Hacking | -11 -10 -10 -9 --------- Run | Jun Mat Min Mat Machines Accessed 4 | . 1 . 3 Terminals 4 | . 1 . 3 Fabricators . | . . . . Repair Stations . | . . . . Recycling Units . | . . . . Scanalyzers . | . . . . Garrison Access . | . . . . Total Hacks 6 | . 1 . 5 Successful 5 | . 1 . 4 Failed 1 | . . . 1 Catastrophic . | . . . . Database Lockouts . | . . . . Manual . | . . . . Terminals 6 | . 1 . 5 Fabricators . | . . . . Repair Stations . | . . . . Recycling Units . | . . . . Scanalyzers . | . . . . Garrison Access . | . . . . Terminal Hacks 5 | . 1 . 4 Record 2 | . . . 2 Prototype ID Bank 1 | . 1 . . Alert Level 1 | . . . 1 Dispatch Records 1 | . . . 1 Fabricator Hacks . | . . . . Repair Station Hacks . | . . . . Recycling Unit Hacks . | . . . . Scanalyzer . | . . . . Garrison Access Hacks . | . . . . Unauthorized Hacks . | . . . . Terminals . | . . . . Fabricators . | . . . . Repair Stations . | . . . . Recycling Units . | . . . . Scanalyzers . | . . . . Garrison Access . | . . . . Data Cores Recovered . | . . . . Used . | . . . . Hacking Detections 1 | . . . 1 Full Trace Events . | . . . . Feedback Events . | . . . . Feedback Blocked . | . . . . Robot Schematics Acquired . | . . . . Robots Built . | . . . . Authchips . | . . . . Time . | . . . . Total Robot Build Rating . | . . . . Part Schematics Acquired . | . . . . Parts Built . | . . . . Authchips . | . . . . Time . | . . . . Total Part Build Rating . | . . . . Parts Repaired . | . . . . Time . | . . . . Parts Recycled . | . . . . Recycled Matter . | . . . . Retrieved Matter . | . . . . Retrieved Components . | . . . . Parts Scanalyzed . | . . . . Part Schematics Acquired . | . . . . Parts Damaged . | . . . . Bothacking | -11 -10 -10 -9 ------------ Run | Jun Mat Min Mat Used RIF Installer . | . . . . Robots Hacked . | . . . . Non-combat . | . . . . Combat . | . . . . Robot Hacks Applied . | . . . . Relay Couplers Released . | . . . . Fabnet Peak Effective % . | . . . . Robots Rewired . | . . . . Allies Hacked . | . . . . Hacks Repelled . | . . . . Allies | -11 -10 -10 -9 -------- Run | Jun Mat Min Mat Total Allies . | . . . . Largest Group . | . . . . Highest-Rated Group . | . . . . Highest-Rated Ally . | . . . . Total Orders . | . . . . Ally Attacks . | . . . . Total Damage . | . . . . Kills . | . . . . Allies Corrupted . | . . . . Allies Melted . | . . . . Intel | -11 -10 -10 -9 ------- Run | Jun Mat Min Mat Robot Analysis Total . | . . . . Derelict Logs Recovered 1 | . . 1 . Drone Launches . | . . . . Drone Recoveries . | . . . . Exploration | -11 -10 -10 -9 ------------- Run | Jun Mat Min Mat Turns Passed 2004 | 92 138 311 1463 Spaces Moved 996 | 80 110 250 556 Core 33 | 25 . . 8 Treads 17 | . . . 17 Legs 685 | 55 110 250 270 Wheels . | . . . . Hover 132 | . . . 132 Flight 129 | . . . 129 Fastest Speed 50 | 50 120 120 117 Average Speed 179 | 98 120 121 229 Slowest Speed 400 | 120 120 190 400 Overloaded Moves . | . . . . Propulsion Burnouts . | . . . . Robots Hopped . | . . . . Cave-ins Triggered . | . . . . Exploration Rate (%) 26 | 4 17 49 37 Regions Visited 3 Branch Regions 1 Pre-discovered Areas . | . . . . Known Exits Taken . | . . . . Unknown Exits Taken 3 | 1 1 1 . Scrap Searched 2 | . . 2 . Spaces Dug . | . . . . Terrain Destroyed 34 | . . . 34 Melee . | . . . . Projectile . | . . . . AOE 34 | . . . 34 Terrain Rammed . | . . . . Walls Destroyed . | . . . . Machines Disabled . | . . . . Actions | -11 -10 -10 -9 --------- Run | Jun Mat Min Mat Total 1121 | 93 114 259 655 Wait 1 | . . . 1 Move 993 | 79 109 249 556 Hop . | . . . . Pick Up 33 | 9 2 5 17 Fast Attach . | . . . . Attach 22 | 4 2 1 15 Detach 1 | . . . 1 Swap 9 | 1 . 2 6 Drop 8 | . . 2 6 Fire 54 | . 1 . 53 Melee . | . . . . Ram . | . . . . Kick . | . . . . Crush . | . . . . Escape Stasis . | . . . . Rewire . | . . . . Trap . | . . . . Miscellaneous . | . . . . Route ------- -11/Junkyard -10/Materials -10/Mines -9/Materials History --------- Turn | Location | Event 12 | -11/Junkyard | Discovered new exit (range 16) 93 | -11/Junkyard | Entered Materials 169 | -10/Materials | Discovered new exit (range 12) 231 | -10/Materials | Entered Mines 273 | -10/Mines | Met a Derelict bent on vengeance 315 | -10/Mines | Build established: Mutant 330 | -10/Mines | Assembled infested the area 335 | -10/Mines | Assisted by a Guerilla fighting off Assembled 341 | -10/Mines | Learned Materials stockpile data 480 | -10/Mines | Discovered new exit (range 11) 542 | -10/Mines | Entered Materials 542 | -9/Materials | Evolved 2 slots: Utility x2 1675 | -9/Materials | Core integrity fell below 50% 1704 | -9/Materials | Lost 4 parts (1p1n1u1w) 1996 | -9/Materials | Core integrity fell below 20% 2005 | -9/Materials | Destroyed by S-10 Pest with Light Assault Rifle Last Messages --------------- 01904_ T-07 Excavator is excavating. 01905_ Hvy. Assault Rifle destroyed. 01908_ T-07 Excavator is excavating. 01941_ Lgt. Armor Plating destroyed. 01949_ Lgt. Ion Engine destroyed. 01956_ G-34 Mercenary destroyed. 01961_ K-01 Serf collects debris. 01964_ Acquired Sml. Laser. 01965_ Acquired 40 matter. 01978_ S-10 Pest destroyed. 01981_ Lrg. Matter Pod destroyed. 01989_ Flight Unit destroyed. 01990_ K-01 Serf cleans the Atomic Centrifuge. 01991_ Critical hit (Destroy). 01991_ Assault Rifle destroyed. 01993_ Flight Unit destroyed. 01995_ K-01 Serf cleans the Atomic Centrifuge. 01996_ Targeting Computer destroyed. 02003_ Critical hit (Destroy). 02003_ Hvy. Assault Rifle destroyed. Map ----- +----------------------------------------------------+ | ??? ???????????????????????######## | | #####+##????????????????#####?????????? | | #????????????????# ?????????? | | #????????????????# ?????????? | | #??######????????# ?????????? | | #### #?##!!!!##???????# #?????????? | | ???# #?#! !#???????# ###???????? | | ???# #?# #???????# # #???????? | | ???# ### ######### #???????? | | ???# #?????????? | | ???+^ ^ #?????????? | | ???#"" !! """ #?????????? | | ???#"Y """ !! """ #?######??? | | ???#"" """ ! """ # #??? | | ???# """ # #??? | | ???+ + #??? | | ???# """ # = #??? | | ???# """ # #??? | | ???# """ #? #??? | | ???# ########### #?######??? | | ???# ??????????# #?????????? | | ???# ??????????# """ #?????????? | | ???# ??????????# """ #?????????? | | ???# ??????????# """ #?????????? | | ???? ??????????# #?????????? | | ?????????????????# ^ @ #?????????? | | ?????????????????# """ #?????????? | | ?????????????????# """ #?????????? | | ?????????????????# """sss#?????????? | | ?????????????????# = #?????????? | | ?????????????????# %* #?????????? | | ?????????????????# """ #?????????? | | ?????????????????+ """ ?????????? | | ?????????????????# """ ?????????? | | ?????????????????# ????????? | | ?????????????????# ????????? | | ?????????????????# ?? """ #???????? | | ????????????????????? """ #???????? | | ??????????????????????""" ! #???????? | | ???????????????????????? #???????? | | ???????????????????????? #???????? | | ???????????????????????? #???????? | | ???????????????????????? ????????? | | ????????????????????????? ????????? | | ??????????????????????????????????????? | | ??????????????????????????????????????? | | ??????????????????????????????????????? | | ??????????????????????????????????????? | | ??????????????????????????????????????? | | ??????????????????????????????????????? | +----------------------------------------------------+ Best States ------------- Heat Dissipation 38 Energy Generation 10 Energy Capacity 250 Matter Stores 450 Matter Capacity 450 Sight Range 16 Terrain Scan Density 10 Armor Coverage 225 Evasion (%) 55 Targeting Accuracy 5 Recoil Reduction 1 Item Schematics ----------------- None Robot Schematics ------------------ None Fabricated ------------ Nothing Alien Tech Used ----------------- None Achievements -------------- None Challenges ------------ None Game ------ Seed NeutrinoDamperNeutralizer Manual? 0 Play Time 00:34:45 Cumulative 3.1 hours Start 2023.03.24 @ 18:01:05 End 2023.06.17 @ 14:51:48 Sessions 7 Manual Loads 0 Difficulty Rogue Special Mode None Game No. 8 Rogue 8 Adventurer 0 Explorer 0 Win Type - Total 0 Types 0/0/0/0/0/0/0/0/0 Lore% 2 Gallery% 5 Achievement% 4 Wizard Run 0 Options --------- ASCII 0 Keyboard 1 Movement Vi Keybinds 0 Fullscreen 1 Font 24/Smallcaps Map View 76x50 Tactical HUD 1 Map Filters NONE Filters NONE Steam 1 RUN: fb13d848-8541-45e3-9136-974817ff6ebe